bitfinex-derivatives/quotes_ETHF0:USTF0_20240927
["timestamp","ask_amount","ask_price","bid_price","bid_amount"]
[1727419054368,2.34,2662.2,2662.1,3.2078]
[1727419054764,2.34,2662.2,2662.1,3.58338]
[1727419055172,2.34,2662.2,2662.1,3.2078]
[1727419055362,2.34,2662.2,2662.1,3.58338]
[1727419055865,2.34,2662.2,2662.1,3.2078]
[1727419056071,2.34,2662.2,2662.0,0.3693]
[1727419058973,2.34,2662.2,2662.1,3.2078]
[1727419064363,1.08,2662.3,2662.1,3.2078]
[1727419064963,3.2078,2662.7,2662.3,0.37554]
[1727419065174,1.12646,2663.6,2662.6,0.37551]
[1727419065175,3.2958,2663.3,2662.6,0.37551]
[1727419065373,1.08,2663.4,2662.8,3.2078]
[1727419065671,1.08,2663.4,2662.9,1.37973593]
[1727419065865,1.08,2663.3,2663.0,0.97933593]
[1727419066371,1.08,2663.3,2663.1,4.18713593]
[1727419066569,1.08,2663.3,2663.2,0.4091]
[1727419066775,1.08,2663.3,2663.2,0.7903]
[1727419067171,1.08,2663.3,2663.2,0.4091]
[1727419067471,1.08,2663.3,2663.1,0.97933593]
[1727419067677,1.08,2663.3,2663.2,0.4091]
[1727419068273,2.34,2663.5,2663.2,0.4091]
[1727419076078,2.34,2663.5,2663.2,0.78453]
[1727419076986,5.5478,2663.7,2663.2,0.4091]
[1727419077376,2.34,2663.7,2663.3,0.3754]
[1727419077585,2.34,2663.7,2663.4,3.5875]
[1727419077880,2.34,2663.7,2663.4,3.9629]
[1727419078082,2.34,2663.9,2663.5,0.3743]
[1727419079784,2.34,2663.9,2663.5,0.74968]
[1727419080282,2.34,2663.9,2663.5,0.3743]
[1727419080487,2.71533,2663.9,2663.5,0.3743]
[1727419080688,2.34,2663.9,2663.5,0.3743]
[1727419083085,2.34,2663.6,2663.1,3.2078]
[1727419083284,2.34,2663.4,2663.2,0.3968]
[1727419083487,2.34,2663.6,2663.2,0.3968]
[1727419084288,2.34,2663.4,2663.2,0.3968]
[1727419087193,2.34,2663.4,2663.1,3.9628]
[1727419087194,2.71541,2663.4,2663.1,0.3791]
[1727419087398,2.34,2663.2,2663.1,0.3791]
[1727419090098,6.0952,2663.2,2662.8,3.594]
[1727419090401,3.2078,2663.6,2662.8,3.2078]
[1727419090402,2.71547,2662.9,2662.8,3.2078]
[1727419090905,6.47067,2662.9,2662.8,3.2078]
[1727419093910,12.47067,2662.9,2662.8,3.2078]
[1727419094407,0.37549,2662.8,2662.3,3.5898]
[1727419096605,2.34,2662.9,2662.3,3.5898]
[1727419096807,0.37549,2662.8,2662.3,3.5898]
[1727419098000,0.37549,2662.8,2662.3,4.94468593]
[1727419098300,0.37549,2662.8,2662.3,3.96535]
[1727419098508,2.71547,2662.9,2662.3,4.94468593]
[1727419099198,0.37549,2662.8,2662.3,4.56913593]
[1727419099497,0.37549,2662.8,2662.3,4.94468593]
[1727419099704,2.71548,2662.9,2662.3,4.94467593]
[1727419099909,0.37549,2662.8,2662.3,4.94467593]
[1727419100297,2.71548,2662.9,2662.3,4.94467593]
[1727419100794,2.71548,2662.9,2662.3,4.56913593]
[1727419100997,2.71548,2662.9,2662.4,0.37554]
[1727419101299,0.37549,2662.8,2662.5,0.3705]
[1727419103408,0.37549,2662.8,2662.6,0.3919]
[1727419103708,2.34,2662.7,2662.6,0.3919]
[1727419104300,2.34,2662.7,2662.6,3.5997]
[1727419104500,2.34,2662.7,2662.6,0.3919]
[1727419105603,0.37553,2662.5,2662.1,0.97933593]
[1727419105900,0.37558,2662.1,2662.0,0.405]
[1727419106310,1.45558,2662.1,2662.0,0.405]
[1727419107200,1.08,2662.1,2661.6,4.18713593]
[1727419107401,0.01,2662.2,2661.8,0.405]
[1727419107609,0.37561,2661.9,2661.8,0.405]
[1727419108409,2.72561,2661.9,2661.8,0.405]
[1727419116509,2.72561,2661.9,2661.2,3.2078]
[1727419116510,0.37575,2660.9,2660.8,0.088]
[1727419116811,2.72575,2660.9,2660.8,0.3697]
[1727419118111,0.37577,2660.8,2660.7,0.3749]
[1727419118405,0.37578,2660.7,2660.6,3.2078]
[1727419118611,2.72578,2660.7,2660.6,3.2078]
[1727419120019,0.37581,2660.5,2660.3,1.1531]
[1727419120219,0.3758,2660.6,2660.3,1.1531]
[1727419121315,2.72579,2660.7,2660.3,1.1531]
[1727419121513,2.72579,2660.7,2660.4,3.2078]
[1727419121514,2.72578,2660.7,2660.4,3.2078]
[1727419121715,2.35,2660.7,2660.3,1.1531]
[1727419121915,2.72579,2660.7,2660.3,1.1531]
[1727419122533,2.35,2660.7,2660.3,1.1531]
[1727419122714,0.3758,2660.6,2660.3,1.1531]
[1727419122914,2.72579,2660.7,2660.3,1.1531]
[1727419123222,2.35,2660.7,2660.3,1.1531]
[1727419123419,2.72578,2660.7,2660.3,1.1531]
[1727419124219,2.35,2660.7,2660.3,1.1531]
[1727419124418,2.72579,2660.7,2660.3,1.1531]
[1727419124913,0.3758,2660.6,2660.3,1.1531]
[1727419125118,2.35,2660.4,2660.3,1.1531]
[1727419125519,2.35,2660.4,2660.3,4.9123]
[1727419130124,2.35,2660.7,2660.3,5.28813]
[1727419130327,2.72579,2660.7,2660.4,3.2078]
[1727419130522,2.35,2660.5,2660.4,3.2078]
[1727419132724,2.35,2660.7,2660.4,6.9662]
[1727419132921,2.35,2660.9,2660.6,0.37578]
[1727419133525,2.35,2660.9,2660.5,0.3758]
[1727419134116,2.35,2660.9,2660.6,0.37579]
[1727419134822,2.72575,2660.9,2660.5,0.37581]
[1727419135022,2.35,2660.7,2660.5,0.37581]
[1727419135421,2.35,2660.7,2660.5,4.13421]
[1727419136226,2.35,2660.7,2660.6,3.7584]
[1727419136424,2.35,2660.7,2660.5,0.37581]
[1727419136624,2.35,2660.7,2660.5,4.13421]
[1727419137127,2.35,2660.7,2660.6,3.7584]
[1727419138224,2.35,2660.7,2660.6,4.13419]
[1727419138435,2.35,2660.7,2660.6,3.7584]
[1727419138927,2.35,2660.7,2660.5,0.3758]
[1727419139129,2.35,2660.7,2660.5,4.1342]
[1727419139730,2.35,2660.7,2660.5,3.7584]
[1727419139930,2.35,2660.7,2660.4,3.58361]
[1727419140429,2.35,2660.7,2660.5,0.37581]
[1727419140732,2.35,2660.7,2660.4,3.2078]
[1727419140733,2.35,2660.7,2660.4,3.58362]
[1727419141130,2.35,2660.7,2660.5,0.3758]
[1727419141437,2.35,2660.7,2660.4,3.2078]
[1727419141438,2.35,2660.7,2660.4,3.58361]
[1727419141723,2.35,2660.5,2660.4,3.2078]
[1727419143027,2.35,2660.5,2660.4,3.58362]
[1727419143228,0.37576,2660.9,2660.4,6.9662]
[1727419143229,2.35,2660.7,2660.4,6.9662]
[1727419143532,2.35,2660.7,2660.5,0.37581]
[1727419144029,2.35,2661.0,2660.4,3.2078]
[1727419144222,2.35,2661.0,2660.7,3.58358]
[1727419144524,2.35,2661.0,2660.8,0.3993]
[1727419144718,2.72574,2661.0,2660.8,1.1817]
[1727419144924,0.37575,2660.9,2660.8,0.7723]
[1727419145123,2.35,2661.0,2660.8,0.7723]
[1727419145326,0.37575,2660.9,2660.8,0.7723]
[1727419147429,0.37575,2660.9,2660.8,0.3993]
[1727419148132,2.72574,2661.0,2660.8,0.3993]
[1727419148525,0.37575,2660.9,2660.8,0.3993]
[1727419149239,2.72574,2661.0,2660.8,0.3993]
[1727419150126,2.35,2661.0,2660.8,0.3993]
[1727419150937,2.72574,2661.0,2660.8,0.3993]
[1727419151232,2.35,2661.0,2660.8,0.3993]
[1727419151433,2.72575,2661.0,2660.8,0.3993]
[1727419151638,1.454,2661.2,2660.8,0.3993]
[1727419151639,2.35,2661.2,2660.8,0.3993]
[1727419151830,2.35,2661.2,2660.9,0.75684]
[1727419152429,2.35,2661.2,2661.0,0.37574]
[1727419152735,2.35,2661.2,2660.9,0.75684]
[1727419152928,2.35,2661.0,2660.9,0.75684]
[1727419153232,2.35,2661.0,2660.9,0.3811]
[1727419154034,2.35,2661.0,2660.9,0.75685]
[1727419155236,2.35,2661.0,2660.9,0.3811]
[1727419155431,2.35,2661.0,2660.9,0.75685]
[1727419156137,2.35,2661.0,2660.9,0.3811]
[1727419156434,2.35,2661.0,2660.9,1.36043593]
[1727419158035,2.35,2661.0,2660.9,1.73618593]
[1727419159042,2.35,2661.0,2660.9,1.36043593]
[1727419159236,2.35,2661.0,2660.9,1.73618593]
[1727419159446,2.35,2661.0,2660.9,2.37789071]
[1727419159838,2.35,2661.0,2660.9,6.13628953]
[1727419160541,2.35,2661.0,2660.9,7.603214]
[1727419160942,2.35,2661.0,2660.9,3.844814]
[1727419161749,2.35,2661.0,2660.9,3.469064]
[1727419162843,2.35,2661.0,2660.9,3.844814]
[1727419163639,2.35,2661.0,2660.9,2.37788953]
[1727419164338,1.08,2661.0,2660.9,2.37788953]
[1727419164540,1.08,2661.0,2660.9,6.13628953]
[1727419165138,1.08,2661.0,2660.9,6.13746406]
[1727419169546,1.08,2661.0,2660.9,5.76171406]
[1727419169743,1.08,2661.0,2660.9,1.62221406]
[1727419169939,1.08,2661.0,2660.9,0.98418148]
[1727419170249,1.45574,2661.0,2660.9,0.98418148]
[1727419171147,1.08,2661.0,2660.9,0.98418148]
[1727419171445,1.45574,2661.0,2660.9,0.98418148]
[1727419171641,1.08,2661.0,2660.9,0.98418148]
[1727419171944,1.45574,2661.0,2660.9,0.98418148]
[1727419172150,1.08,2661.0,2660.9,0.98418148]
[1727419173344,1.45574,2661.0,2660.9,0.98418148]
[1727419173849,1.08,2661.0,2660.9,0.98418148]
[1727419174049,1.08,2661.0,2660.8,1.38348148]
[1727419174250,1.08,2661.0,2660.9,0.98418148]
[1727419174841,1.08,2661.0,2660.8,1.38348148]
[1727419175244,1.45574,2661.0,2660.8,1.38348148]
[1727419175454,1.08,2661.0,2660.8,1.38348148]
[1727419176156,1.08,2661.0,2660.9,0.98418148]
[1727419178162,1.08,2661.0,2660.9,1.62333439]
[1727419179348,1.08,2661.0,2660.9,3.47524041]
[1727419179548,1.08,2661.0,2660.9,1.99908439]
[1727419179752,1.08,2661.0,2660.9,3.47524041]
[1727419179953,1.08,2661.0,2660.9,1.99908439]
[1727419181150,1.08,2661.0,2660.9,1.99907815]
[1727419181656,0.37565,2661.7,2660.9,1.62332815]
[1727419181854,1.08,2661.1,2661.0,4.83112815]
[1727419182050,1.08,2661.1,2661.0,5.20686815]
[1727419182654,1.08,2661.1,2661.0,8.96446815]
[1727419182852,0.37563,2661.8,2661.3,0.37569]
[1727419183049,1.451,2662.0,2661.5,0.98473479]
[1727419183252,1.451,2662.0,2661.1,1.87150219]
[1727419183253,0.3757,2661.3,2661.1,1.87150219]
[1727419183453,1.08,2661.2,2661.0,1.47710219]
[1727419183653,1.539,2662.0,2660.5,1.47710219]
[1727419183654,3.2078,2661.1,2660.5,1.47710219]
[1727419183848,0.37576,2660.9,2660.6,3.10174782]
[1727419184048,1.08,2660.7,2660.6,1.47710219]
[1727419184249,1.45578,2660.7,2660.5,1.47710219]
[1727419184452,1.08,2660.6,2660.4,1.47710219]
[1727419184758,0.37577,2660.8,2660.5,1.62041142]
[1727419184959,0.37577,2660.8,2660.4,1.47710219]
[1727419185161,1.08,2660.5,2660.4,1.47710219]
[1727419185457,1.08,2660.5,2660.4,3.09775101]
[1727419185659,1.08,2660.5,2660.4,6.85616333]
[1727419185954,1.08,2660.5,2660.4,3.09774116]
[1727419186459,2.35,2660.5,2660.4,3.09762505]
[1727419186859,2.35,2660.5,2660.4,6.85602505]
[1727419187050,2.35,2660.5,2660.4,6.85592899]
[1727419187253,2.35,2660.5,2660.4,5.37869111]
[1727419188797,1.02726,2661.3,2660.4,11.37869111]
[1727419188798,0.088,2661.3,2660.4,11.37869111]
[1727419188957,0.088,2661.3,2660.8,1.47714718]
[1727419188958,2.35,2661.3,2660.8,1.47714718]
[1727419189266,2.35,2661.3,2661.0,4.68494718]
[1727419189450,2.35,2661.3,2661.1,1.62029111]
[1727419189655,2.35,2661.3,2661.2,1.61990355]
[1727419190077,2.35,2661.3,2661.1,0.3769]
[1727419197066,2.35,2661.3,2661.1,1.85404718]
[1727419197774,2.35,2661.3,2661.1,0.3769]
[1727419199067,2.7257,2661.3,2661.1,1.85391446]
[1727419199267,2.7257,2661.3,2661.1,0.3769]
[1727419200371,0.37571,2661.2,2661.1,0.3769]
[1727419201566,0.37574,2661.0,2660.9,2.27961446]
[1727419201771,2.72574,2661.0,2660.9,2.42272331]
[1727419201974,2.35,2661.0,2660.9,2.42272331]
[1727419202160,2.72574,2661.0,2660.9,1.62012331]
[1727419202364,0.37577,2660.8,2660.7,0.3893]
[1727419202972,0.37576,2660.9,2660.7,0.3893]
[1727419203166,2.72574,2661.0,2660.7,0.3893]
[1727419203374,0.37575,2660.9,2660.7,0.3893]
[1727419204273,3.7584,2660.8,2660.5,1.47701446]
[1727419204476,2.35,2660.7,2660.5,1.47701446]
[1727419204768,2.35,2660.7,2660.5,1.85261446]
[1727419205777,2.35,2660.7,2660.5,0.3756]
[1727419206368,2.72578,2660.7,2660.5,0.3756]
[1727419206568,2.35,2660.7,2660.5,0.3756]
[1727419207268,2.35,2660.7,2660.5,1.85261446]
[1727419207677,0.37579,2660.6,2660.5,0.3756]
[1727419208380,2.35,2660.7,2660.4,0.3833]
[1727419208381,0.37581,2660.5,2660.4,0.3833]
[1727419208584,2.72581,2660.5,2660.4,0.3833]
[1727419209080,2.72581,2660.5,2660.1,2.25681446]
[1727419209287,0.37581,2660.5,2660.2,1.99759868]
[1727419209479,2.35,2660.3,2660.2,0.378]
[1727419209674,2.35,2660.3,2660.2,1.99730494]
[1727419211478,2.35,2660.3,2660.2,0.378]
[1727419212587,4.078,2661.0,2660.2,11.75594105]
[1727419212588,2.35,2660.7,2660.2,11.75594105]
[1727419212785,2.35,2660.7,2660.5,1.47592743]
[1727419212979,2.35,2660.7,2660.6,0.7551]
[1727419213283,2.35,2660.9,2660.6,3.84976513]
[1727419213480,2.35,2660.9,2660.7,5.6001077]
[1727419213677,2.35,2660.9,2660.7,3.98137]
[1727419213881,2.35,2660.9,2660.8,1.6187524]
[1727419214384,2.72575,2660.9,2660.7,0.3978]
[1727419214586,0.37577,2660.8,2660.7,0.3978]
[1727419215289,2.72575,2660.9,2660.7,0.3978]
[1727419215581,2.35,2660.9,2660.7,0.3978]
[1727419216777,2.72576,2660.9,2660.7,0.3978]
[1727419217378,2.35,2660.9,2660.7,0.3978]
[1727419218181,2.72575,2660.9,2660.7,0.3978]
[1727419218380,0.37577,2660.8,2660.7,0.3978]
[1727419218684,0.37577,2660.8,2660.3,1.47592743]
[1727419218685,0.37582,2660.4,2660.3,1.47592743]
[1727419218981,2.72582,2660.4,2660.3,2.00336447]
[1727419219181,6.48502,2660.4,2660.3,0.3843]
[1727419219582,9.317,2660.4,2660.0,0.771]
[1727419219781,2.72586,2660.1,2660.0,0.771]
[1727419219981,2.72586,2660.1,2660.0,0.3756]
[1727419220183,2.72586,2660.1,2659.9,0.3843]
[1727419220184,6.48506,2660.1,2659.9,0.3843]
[1727419220378,0.37588,2660.0,2659.9,0.3843]
[1727419221285,2.35,2660.1,2659.9,0.3843]
[1727419221286,5.93366,2660.1,2659.9,0.3843]
[1727419221586,5.5578,2660.1,2659.9,0.3843]
[1727419222389,2.35,2660.1,2659.9,0.3843]
[1727419222580,2.35,2660.1,2660.0,0.4021]
[1727419222982,2.35,2660.1,2659.9,0.3843]
[1727419223290,0.37588,2660.0,2659.9,0.3843]
[1727419224294,12.1092,2660.0,2659.5,3.2078]
[1727419224490,2.35,2659.6,2659.5,3.2078]
[1727419227302,2.35,2659.6,2659.5,3.58375]
[1727419227598,2.35,2659.6,2659.5,3.2078]
[1727419228203,2.72594,2659.6,2659.4,0.3871]
[1727419228802,2.35,2659.6,2659.4,0.3871]
[1727419229495,2.35,2659.6,2659.4,0.76306]
[1727419229684,2.35,2659.6,2659.4,0.3871]
[1727419230085,2.35,2659.6,2659.4,0.76306]
[1727419231494,2.35,2659.6,2659.4,0.3871]
[1727419232497,2.35,2659.6,2659.4,0.76306]
[1727419232800,2.35,2659.6,2659.4,0.3871]
[1727419234295,2.35,2659.6,2659.4,0.76306]
[1727419235497,2.35,2659.6,2659.4,0.3871]
[1727419235699,2.35,2659.6,2659.4,0.76305]
[1727419236410,2.35,2660.0,2659.5,3.76]
[1727419236601,4.166,2660.6,2659.9,3.2078]
[1727419236795,2.35,2660.5,2660.2,3.58364]
[1727419236995,2.35,2660.5,2660.2,3.2078]
[1727419237196,2.35,2660.3,2660.2,3.2078]
[1727419238893,2.35,2660.3,2660.2,3.58365]
[1727419239101,2.35,2660.3,2660.2,7.34285]
[1727419239896,2.35,2660.3,2660.2,6.967]
[1727419240295,2.35,2660.3,2660.2,7.34285]
[1727419240800,2.35,2660.3,2660.2,6.967]
[1727419241330,2.35,2660.3,2660.2,7.34285]
[1727419241505,2.35,2660.3,2660.2,8.95775933]
[1727419241700,2.35,2660.3,2660.2,7.34285]
[1727419242008,2.35,2660.3,2660.2,6.967]
[1727419242399,2.35,2660.3,2660.2,3.2078]
[1727419242605,2.35,2660.3,2660.2,6.967]
[1727419243401,2.35,2660.3,2660.2,3.2078]
[1727419245802,2.35,2660.3,2660.2,3.58365]
[1727419246107,2.35,2660.3,2660.2,7.34285]
[1727419246505,2.35,2660.3,2660.2,8.96193612]
[1727419247309,2.35,2660.3,2660.2,10.43786355]
[1727419247500,2.35,2660.8,2660.2,16.06201355]
[1727419247706,13.567,2661.3,2660.5,3.2078]
[1727419247707,2.35,2661.0,2660.5,3.2078]
[1727419247911,9.37918,2661.5,2660.6,1.1869]
[1727419247912,2.35,2660.7,2660.6,1.1869]
[1727419248115,2.35,2660.7,2660.6,1.56269]
[1727419248408,2.35,2660.7,2660.6,5.32109]
[1727419248799,2.35,2660.7,2660.6,6.94011347]
[1727419249509,2.35,2660.7,2660.6,6.93995323]
[1727419249704,2.35,2660.7,2660.6,8.41588066]
[1727419249912,2.35,2660.7,2660.6,6.93995323]
[1727419250907,2.35,2660.7,2660.6,3.18143383]
[1727419251107,2.35,2660.7,2660.6,6.93983383]
[1727419251902,2.35,2660.7,2660.6,8.41576126]
[1727419252103,2.35,2660.7,2660.6,6.93983383]
[1727419252412,2.35,2660.7,2660.6,8.41576126]
[1727419253211,2.35,2660.9,2660.7,0.37577]
[1727419253511,2.35,2660.9,2660.8,3.2078]
[1727419253702,2.35,2660.9,2660.8,3.58357]
[1727419254614,2.35,2660.9,2660.8,7.34197]
[1727419255511,2.35,2660.9,2660.8,3.2078]
[1727419256507,2.35,2660.9,2660.8,3.58357]
[1727419257623,2.35,2660.9,2660.8,3.2078]
[1727419258411,6.48415,2660.9,2660.8,3.2062]
[1727419258609,7.42354,2660.9,2660.8,3.2054]
[1727419259116,7.42354,2660.9,2660.2,0.3821]
[1727419259117,0.3758,2660.6,2660.2,0.3821]
[1727419259312,2.35,2660.3,2660.2,0.3821]
[1727419259522,2.35,2660.3,2660.2,0.75795]
[1727419260411,1.08,2660.3,2660.2,0.75795]
[1727419262316,2.35,2660.4,2660.2,0.75795]
[1727419264923,2.35,2660.4,2660.3,0.37584]
[1727419265137,0.46373,2661.1,2660.3,0.37584]
[1727419265421,2.35,2660.7,2660.6,0.37579]
[1727419265624,2.35,2660.9,2660.8,0.37577]
[1727419265925,2.35,2660.9,2660.8,3.58357]
[1727419266424,2.35,2660.9,2660.8,7.34197]
[1727419267115,2.35,2660.9,2660.8,3.58357]
[1727419267316,2.35,2661.3,2660.8,12.9662]
[1727419267623,2.35,2661.6,2661.3,0.37569]
[1727419267824,7.6614,2662.0,2661.4,0.7797]
[1727419268031,2.35,2661.8,2661.5,3.2078]
[1727419269420,2.35,2661.6,2661.5,3.2078]
[1727419269622,2.35,2661.6,2661.4,0.7797]
[1727419270319,0.01,2662.2,2661.5,3.58347]
[1727419270320,2.35,2661.8,2661.5,3.58347]
[1727419270519,2.35,2661.8,2661.6,0.37565]
[1727419270724,2.35,2662.1,2661.5,3.2078]
[1727419270930,2.35,2662.1,2661.9,3.2078]
[1727419271125,2.35,2662.1,2662.0,0.383]
[1727419271325,2.35,2662.1,2662.0,0.7838]
[1727419273025,2.35,2662.1,2662.0,1.1682]
[1727419273523,0.01,2662.2,2662.1,0.37558]
[1727419275326,0.01,2662.2,2662.1,10.13158]
[1727419275529,0.088,2662.8,2662.6,0.3755]
[1727419275727,2.35,2663.0,2662.7,3.6111]
[1727419276329,2.35,2663.0,2662.7,0.77879]
[1727419276625,2.35,2663.0,2662.8,3.2078]
[1727419277232,2.35,2663.0,2662.7,0.4033]
[1727419277433,2.35,2663.0,2662.8,0.37547]
[1727419277634,2.35,2663.0,2662.8,3.58327]
[1727419278229,3.2078,2663.6,2662.9,0.37547]
[1727419278230,2.35,2663.2,2662.9,0.37547]
[1727419278431,2.35,2663.2,2663.1,3.2078]
[1727419279327,2.35,2663.2,2663.0,0.3895]
[1727419289640,2.35,2663.2,2663.1,3.2078]
[1727419289937,0.37539,2663.5,2663.1,3.2078]
[1727419289938,2.35,2663.4,2663.1,3.2078]
[1727419290236,2.35,2663.4,2663.2,0.3823]
[1727419296139,2.35,2663.4,2663.2,3.5901]
[1727419297142,2.35,2663.6,2663.2,3.5901]
[1727419297333,2.72537,2663.6,2663.2,3.5901]
[1727419297538,2.35,2663.6,2663.2,3.5901]
[1727419297738,2.72538,2663.6,2663.2,3.5901]
[1727419297939,0.37539,2663.5,2663.2,0.3823]
[1727419298142,0.37539,2663.5,2663.2,3.5901]
[1727419298739,2.72538,2663.6,2663.2,3.5901]
[1727419298938,0.37538,2663.5,2663.2,3.5901]
[1727419299142,2.72538,2663.6,2663.2,3.5901]
[1727419299533,2.35,2663.6,2663.2,3.5901]
[1727419300043,2.72538,2663.6,2663.2,3.5901]
[1727419300639,2.35,2663.6,2663.2,3.5901]
[1727419300845,0.37539,2663.5,2663.2,3.5901]
[1727419301244,2.35,2663.4,2663.2,0.3823]
[1727419301442,2.7254,2663.4,2663.2,0.3823]
[1727419301645,2.35,2663.4,2663.2,0.3823]
[1727419302338,2.35,2663.4,2663.2,3.5901]
[1727419302544,2.35,2663.4,2663.2,0.3823]
[1727419302743,2.7254,2663.4,2663.2,0.3823]
[1727419303248,2.35,2663.4,2663.2,0.3823]
[1727419307048,0.3754,2663.5,2663.2,0.3823]
[1727419307246,2.7254,2663.5,2663.2,0.3823]
[1727419308153,5.5578,2663.3,2662.6,3.2078]
[1727419308362,1.08,2662.7,2662.4,1.129]
[1727419308646,0.93856,2663.3,2662.4,0.3696]
[1727419308647,1.08,2662.5,2662.4,0.3696]
[1727419308851,1.08,2662.5,2662.3,3.2078]
[1727419309246,0.0095,2662.8,2662.4,0.3768]
[1727419309247,1.08,2662.6,2662.4,0.3768]
[1727419310264,5.5478,2663.0,2662.4,0.3768]
[1727419310466,3.58326,2663.0,2662.4,0.3768]
[1727419310672,5.5478,2663.0,2662.4,0.3768]
[1727419312568,2.34,2663.0,2662.6,3.2078]
[1727419312774,2.34,2663.0,2662.7,0.7437]
[1727419313181,2.34,2663.0,2662.8,0.3868]
[1727419313673,12.76029,2663.5,2662.8,0.3868]
[1727419313674,7.2858,2663.5,2662.8,0.3868]
[1727419313973,0.37536,2663.7,2663.0,4.18241426]
[1727419314181,2.34,2663.7,2663.0,4.18241426]
[1727419314374,2.71537,2663.7,2663.0,4.18241426]
[1727419314568,2.71537,2663.7,2662.7,0.7437]
[1727419314569,2.34,2663.2,2662.7,4.55561426]
[1727419314767,2.34,2663.2,2662.6,0.3717]
[1727419314768,2.34,2663.0,2662.6,0.3717]
[1727419314979,2.34,2662.7,2662.6,0.3717]
[1727419315477,2.7155,2662.7,2662.6,0.3717]
[1727419316566,0.37551,2662.6,2662.4,0.3998]
[1727419317274,0.37552,2662.6,2662.3,3.2078]
[1727419317573,0.37552,2662.6,2662.3,3.6076]
[1727419317874,2.34,2662.7,2662.3,3.6076]
[1727419317875,0.37553,2662.5,2662.3,3.6076]
[1727419318073,2.34,2662.7,2662.3,3.6076]
[1727419318274,2.7155,2662.7,2662.3,3.6076]
[1727419319081,2.7155,2662.7,2662.3,4.58221426]
[1727419319270,2.34,2662.7,2662.3,4.58221426]
[1727419319778,2.7155,2662.7,2662.3,4.58221426]
[1727419320273,2.7155,2662.7,2662.2,0.7756]
[1727419320274,0.37557,2662.2,2662.1,0.97461426]
[1727419320575,0.01,2662.2,2661.7,1.34931426]
[1727419320775,2.34,2661.8,2661.7,1.34931426]
[1727419320975,2.34,2661.8,2661.7,0.3747]
[1727419321373,2.34,2661.8,2661.7,1.34931426]
[1727419321679,2.34,2661.8,2661.7,0.3747]
[1727419325885,2.71562,2661.8,2661.7,0.3747]
[1727419326088,2.34,2661.8,2661.7,0.3747]
[1727419326385,2.71562,2661.8,2661.7,0.3747]
[1727419326587,2.34,2661.8,2661.7,0.3747]
[1727419326779,2.71562,2661.8,2661.7,0.3747]
[1727419326979,6.47242,2661.8,2661.7,0.3747]
[1727419327187,6.0968,2661.8,2661.7,0.3747]
[1727419327386,2.71562,2661.8,2661.7,0.3747]
[1727419328088,6.47242,2661.8,2661.7,0.3747]
[1727419328685,2.71562,2661.8,2661.7,0.3747]
[1727419328885,12.0968,2661.8,2661.4,3.6033]
[1727419329084,12.0968,2661.8,2661.3,0.97461426]
[1727419329085,0.37568,2661.4,2661.3,0.7763]
[1727419329892,3.7576,2661.4,2661.3,0.7763]
[1727419330186,2.34,2661.5,2661.3,0.7763]
[1727419332593,2.71567,2661.5,2661.3,0.7763]
[1727419332798,0.37568,2661.4,2661.3,0.7763]
[1727419332993,0.37568,2661.4,2661.1,0.399]
[1727419332994,4.13328,2661.4,2661.1,0.399]
[1727419333197,2.34,2661.2,2661.1,0.7731]
[1727419336795,2.34,2661.4,2661.1,1.14882]
[1727419337001,2.34,2661.4,2661.2,0.3788]
[1727419338697,2.34,2661.4,2661.3,3.2078]
[1727419341903,2.34,2661.4,2661.2,0.3788]
[1727419344018,2.71568,2661.4,2661.2,0.3788]
[1727419344319,6.0976,2661.4,2661.1,0.7731]
[1727419344618,2.71571,2661.2,2661.1,0.3741]
[1727419346818,2.34,2661.2,2661.1,0.3741]
[1727419347422,2.71571,2661.2,2661.1,0.3741]
[1727419349424,2.34,2661.2,2661.1,0.3741]
[1727419350618,2.34,2661.4,2661.1,0.3741]
[1727419350821,2.34,2661.4,2661.2,0.395]
[1727419351025,2.34,2661.4,2661.3,0.4086]
[1727419355631,2.34,2661.4,2661.2,0.395]
[1727419359031,2.34,2661.6,2661.2,0.395]
[1727419359227,2.34,2661.6,2661.4,3.2078]
[1727419360035,2.34,2661.6,2661.4,3.58348]
[1727419360232,2.34,2661.6,2661.4,4.55809426]
[1727419360535,2.34,2661.6,2661.4,4.18241426]
[1727419360937,2.34,2661.6,2661.4,4.55808426]
[1727419361332,2.34,2661.6,2661.5,0.97461426]
[1727419363243,2.34,2661.6,2661.4,3.58347]
[1727419363244,2.34,2661.6,2661.4,5.05939743]
[1727419363440,2.34,2661.6,2661.5,1.62063984]
[1727419363829,2.34,2661.6,2661.5,1.62069589]
[1727419364143,2.34,2661.6,2661.4,4.68372743]
[1727419364437,2.34,2661.6,2661.5,1.62122979]
[1727419365231,11.5478,2661.6,2661.5,0.98391403]
[1727419365437,0.37572,2661.1,2661.0,0.98394479]
[1727419365734,0.37577,2660.8,2660.6,0.4036]
[1727419365935,2.71577,2660.8,2660.6,0.4036]